[Event "FRA-ch Teams Top 16-A 2022"]
[Site "Chartres"]
[Date "2022.06.10"]
[Round "2.20"]
[White "Eden, James"]
[Black "Sohier, Julien"]
[Result "1-0"]
[ECO "C54"]
[WhiteElo "2273"]
[BlackElo "2218"]
[Annotator "TA"]
[PlyCount "99"]
[EventDate "2022.06.09"]
[EventType "team-tourn"]
[EventCountry "FRA"]
[SourceTitle "playchess.com"]
[Source "ChessBase"]
[SourceQuality "1"]
[TimeControl "40/5400+30:1800+30"]

{[%evp 15,99,21,21,18,15,27,12,0,0,0,0,0,8,15,13,7,8,6,32,27,45,43,170,125,124,124,121,129,121,124,179,163,231,224,225,185,199,208,231,227,233,215,215,204,446,429,393,217,286,202,207,207,202,184,185,199,192,190,272,267,307,322,282,212,303,301,281,249,2519,2473,2058,1731,2547,2270,1790,1140,12841,12842,12842,12843,12843,12843,12844,12844,12845,12843]} 1. e4 {[%emt 0:00:23]} e5 {[%emt 0:00:08]} 2. Nf3 {[%emt 0:00:07]} Nc6 {[%emt 0:00:06]} 3. Bc4 {[%emt 0:00:15]} Bc5 {[%emt 0:00:06]} 4. c3 {[%emt 0:00:07]} Nf6 {[%emt 0:00:11]} 5. d3 {[%emt 0:00:09]} O-O {[%emt 0:00:12]} 6. O-O {[%emt 0:00:19]} d5 {[%emt 0:01:04]} 7. exd5 {[%emt 0:00:10]} Nxd5 {[%emt 0:00:03]} 8. Re1 {[%emt 0:00:23]} Bg4 {[%emt 0:00:32]} 9. Nbd2 {[%emt 0:00:30] C54: Giuoco Piano: 4 c3 Nf6, main lines with 5 d4 and 5 d3.} Nb6 {[%emt 0:00:33]} 10. h3 {[%emt 0:00:23]} Bh5 {[%emt 0:03:46]} 11. Bb3 $1 {[%emt 0:00:21][%mdl 4] The position is equal. is more profitable than 11.Bb5 at the moment.} Qxd3 {[%emt 0:01:41]} 12. Nxe5 {[%emt 0:00:14]} Qf5 {[%emt 0:01:04]} 13. Nef3 $1 {[%emt 0:00:11]} ({Avoid the trap} 13. Ndf3 $2 Nxe5 14. Rxe5 Qxe5 15. Nxe5 Bxd1 16. Bxd1 Rfe8 $19) 13... Rad8 {[%emt 0:00:58]} 14. Qe2 {[%emt 0:00:23]} Qc8 {[%emt 0:00:55]} 15. Ne4 $36 {[%emt 0:01:33][%mdl 2048] White has good play.} Rfe8 {[%emt 0:09:54][%cal Oc6e5]} 16. Bf4 {[%emt 0:00:18] [#] Prevents Ne5.} Bg6 $146 {[%emt 0:11:39]} ({Predecessor:} 16... Na5 17. Bc2 f5 18. Qb5 fxe4 19. Qxa5 exf3 20. Qxc5 Bf7 21. Re7 Nd5 22. Rxe8+ Rxe8 {½-½ (34) Anupam,M (1653)-Ishvi,A (1681) Pollachi 2022}) 17. Nfg5 {[%emt 0:01:35]} Bf8 {[%emt 0:18:41]} 18. h4 {[%emt 0:01:47] Threatens to win with h5.} Na5 {[%emt 0:04:37] [#]} (18... Re7 $14) 19. Bxf7+ $1 {[%emt 0:04:13][%mdl 512]} Bxf7 {[%emt 0:01:09]} 20. Nxf7 {[%emt 0:00:14]} Kxf7 {[%emt 0:01:42]} 21. Qh5+ {[%emt 0:01:13]} Kg8 {[%emt 0:00:04]} 22. Qxa5 {[%emt 0:00:49] White is more active.} Nd5 {[%emt 0:05:26]} (22... c5 $16) 23. Bg5 {[%emt 0:02:50]} Ne7 {[%emt 0:08:51]} (23... Rd7 {was necessary.} 24. Qxa7 h6) 24. Qxa7 $18 {[%emt 0:02:48]} h6 {[%emt 0:01:07]} 25. Bxe7 {[%emt 0:03:42]} Bxe7 {[%emt 0:01:06]} 26. g3 {[%emt 0:02:20]} Rd3 {[%emt 0:11:20]} 27. Qa4 {[%emt 0:01:41] Qc4+ is the strong threat.} Red8 {[%emt 0:02:47]} 28. Rad1 {[%emt 0:00:39]} Rxd1 {[%emt 0:02:31]} 29. Rxd1 {[%emt 0:00:13]} Bxh4 {[%emt 0:00:24]} (29... Rxd1+ {was worth a try.} 30. Qxd1 Qe6) 30. Rxd8+ {[%emt 0:00:40]} (30. Qb3+ Kh7 31. Rxd8 Bxd8 $18) 30... Bxd8 {[%emt 0:00:17][%mdl 4096] Endgame KQB-KQN} 31. Qe8+ {[%emt 0:00:22]} Kh7 {[%emt 0:00:04]} 32. f3 {[%emt 0:17:14]} c6 {[%emt 0:02:32] Hoping for ...Bb6+.} 33. Kg2 {[%emt 0:07:56]} Qc7 {[%emt 0:00:05]} 34. b4 {[%emt 0:00:58]} Qe7 {[%emt 0:01:09]} 35. Qh5 {[%emt 0:08:18]} Qe6 {[%emt 0:01:12]} 36. a4 {[%emt 0:00:10]} Qa2+ {[%emt 0:08:21]} (36... b6 $142 37. Kg1 Qd7) 37. Kh3 {[%emt 0:00:30]} Qe6+ {[%emt 0:00:39]} 38. Qg4 {[%emt 0:00:49]} Qd5 {[%emt 0:01:14]} 39. Nc5 {[%emt 0:00:33]} b6 {[%emt 0:00:59]} (39... Be7 $142 40. c4 (40. Nxb7 g6 $16) 40... Qd6 41. Qf5+ (41. Nxb7 Qxb4 42. Qf5+ Kg8 $16) (41. Ne6 g6 $16) 41... Kg8 42. Nxb7 Qxb4) 40. Ne6 {[%emt 0:08:03][%csl Ge6][%cal Rg4g7]} Bf6 {[%emt 0:00:22]} 41. c4 {[%emt 0:32:48]} Qd3 {[%emt 0:06:18] [#]} (41... Qd1 42. Qe4+ Kh8) 42. Qe4+ $1 {[%emt 0:00:00] White is clearly winning.} Qxe4 {[%emt 0:00:06]} 43. fxe4 {[%emt 0:00:00] KB-KN} Bc3 {[%emt 0:01:20]} 44. c5 {[%emt 0:00:00]} bxc5 {[%emt 0:00:35]} 45. bxc5 {[%emt 0:00:00] And now Nd8 would win.} Bb4 {[%emt 0:01:41]} 46. Nd4 {[%emt 0:00:00]} Bxc5 {[%emt 0:04:32]} 47. Nxc6 {[%emt 0:00:00]} Kg6 {[%emt 0:04:48]} 48. a5 {[%emt 0:00:00][%cal Ba4a5,Ba5a6][%mdl 32]} Kf6 {[%emt 0:00:21]} 49. a6 {[%emt 0:00:00]} g5 {[%emt 0:03:46]} 50. Kg4 {[%emt 0:00:00] Weighted Error Value: White=0.15 (very precise) /Black=0.33} 1-0

[Event "FRA-ch Teams Top 16-A 2022"]
[Site "Chartres"]
[Date "2022.06.10"]
[Round "2.21"]
[White "Ramirez Garcia, Jorge Alberto"]
[Black "Caille, Hugo"]
[Result "1-0"]
[ECO "B10"]
[WhiteElo "2242"]
[BlackElo "2177"]
[Annotator "TA"]
[PlyCount "173"]
[EventDate "2022.06.09"]
[EventType "team-tourn"]
[EventCountry "FRA"]
[SourceTitle "playchess.com"]
[Source "ChessBase"]
[SourceQuality "1"]
[TimeControl "40/5400+30:1800+30"]

{[%evp 9,173,-3,20,21,12,-4,24,-3,16,18,13,22,37,-12,-21,-15,-8,-29,-2,-12,0,0,10,0,25,-17,-12,-24,0,0,0,0,0,0,0,0,4,-14,-6,-11,0,-34,-29,-31,-13,-13,0,0,0,0,0,0,0,0,0,0,0,0,0,0,0,0,0,0,0,0,0,0,0,0,0,0,0,0,0,0,0,0,40,40,40,40,40,40,40,40,40,40,40,40,40,40,40,0,0,0,0,0,0,0,0,0,0,0,0,0,0,0,0,0,0,0,0,0,0,0,0,0,0,0,0,0,0,0,0,0,0,0,0,0,0,0,0,0,0,0,0,0,0,0,0,0,2812,0,2512,2406,1912,0,1638,0,1746,1291,4808,0,1969,0,3875,0,29954,29951,6115,6095,6094,5505,5120,2509]} 1. e4 {[%emt 0:00:03]} c6 {[%emt 0:05:34]} 2. Nf3 {[%emt 0:00:06]} d5 {[%emt 0:00:09]} 3. d3 {[%emt 0:00:05]} dxe4 {[%emt 0:01:45]} 4. dxe4 {[%emt 0:00:05]} Qxd1+ {[%emt 0:00:10]} 5. Kxd1 {[%emt 0:00:04]} Nf6 {[%emt 0:01:32]} 6. Nfd2 {[%emt 0:00:07] B10: Caro-Kann: 2 d3 and 2 c4.} g5 {[%emt 0:00:50]} 7. a4 {[%emt 0:00:09] [#]} Bg7 $146 {[%emt 0:02:00]} ({Predecessor:} 7... Rg8 8. a5 Be6 9. Nc3 Nbd7 10. Bc4 Nc5 11. Bxe6 Nxe6 12. Nb3 Ng4 13. Ke2 Bg7 {1-0 (54) Vachier Lagrave,M (2763)-Duda,J (2756) chess24.com INT 2021}) 8. c3 {[%emt 0:03:01] White has an edge.} Be6 {[%emt 0:05:24]} 9. f3 {[%emt 0:09:56]} Nbd7 {[%emt 0:04:19][%cal Bb8d7,Bd7c5,Bc5b3,Bb3c1][%mdl 32]} 10. Bc4 {[%emt 0:08:03]} Nc5 {[%emt 0:04:27]} 11. b4 {[%emt 0:07:39]} (11. Kc2 $14) 11... Bxc4 $1 $11 {[%emt 0:00:17]} 12. Nxc4 {[%emt 0:00:29]} Nb3 {[%emt 0:01:51]} 13. Ra2 {[%emt 0:07:40]} Nxc1 {[%emt 0:07:09]} 14. Kxc1 {[%emt 0:00:10]} Nd7 {[%emt 0:00:07]} 15. Kc2 {[%emt 0:12:50]} Ne5 {[%emt 0:05:12]} 16. Nba3 {[%emt 0:01:39]} Ng6 {[%emt 0:11:47]} 17. Kb3 {[%emt 0:10:37]} (17. Rd1 {seems wilder.} Rd8 18. Raa1 Be5 19. h3) 17... O-O-O {[%emt 0:04:06]} 18. Nb1 {[%emt 0:10:39][%cal Ba3b1,Bb1d2,Bd2c4][%mdl 32]} (18. Rd2 {looks sharper.} h5 19. Rhd1 Nf4 20. Kc2) 18... Rd3 {[%emt 0:02:57]} (18... h5 {feels hotter.} 19. Rd2 b5 20. Nb2 h4) 19. Rd2 {[%emt 0:00:54]} Rxd2 {[%emt 0:02:10]} 20. Nbxd2 {[%emt 0:03:32]} Rd8 {[%emt 0:00:41]} 21. Kc2 {[%emt 0:01:53]} Kc7 {[%emt 0:04:02]} 22. g3 {[%emt 0:02:32]} h5 {[%emt 0:03:51]} 23. Ne3 {[%emt 0:01:51]} e6 {[%emt 0:00:45]} 24. Ndc4 {[%emt 0:04:03]} h4 {[%emt 0:03:50]} 25. Rd1 {[%emt 0:05:15]} Rxd1 {[%emt 0:00:18]} 26. Nxd1 {[%emt 0:00:05]} hxg3 {[%emt 0:00:13]} 27. hxg3 {[%emt 0:00:05]} Ne5 {[%emt 0:00:07]} 28. Nxe5 {[%emt 0:00:25]} Bxe5 {[%emt 0:00:05][%mdl 4096] Endgame KB-KN} 29. g4 {[%emt 0:00:07]} b5 {[%emt 0:06:11]} 30. Kb3 {[%emt 0:00:23]} Kd6 {[%emt 0:01:58]} 31. axb5 {[%emt 0:02:02]} cxb5 {[%emt 0:00:05]} 32. Nf2 {[%emt 0:02:24]} Kc6 {[%emt 0:05:33]} 33. Nd3 {[%emt 0:00:41]} Bd6 {[%emt 0:00:04]} 34. c4 {[%emt 0:00:29]} f6 {[%emt 0:02:47]} 35. Ne1 {[%emt 0:02:24]} Be5 {[%emt 0:04:55]} 36. Nc2 {[%emt 0:03:22]} a6 {[%emt 0:00:38]} 37. cxb5+ {[%emt 0:01:04]} axb5 {[%emt 0:01:22]} 38. Na3 {[%emt 0:00:20]} Bg3 {[%emt 0:01:23]} 39. Nc2 {[%emt 0:00:30]} Be5 {[%emt 0:00:06]} 40. Ne1 {[%emt 0:00:21]} Bd4 {[%emt 0:00:25]} 41. Kc2 {[%emt 0:30:53]} e5 {[%emt 0:33:39]} 42. Nd3 {[%emt 0:00:50]} Bb6 {[%emt 0:00:38]} 43. Nc1 {[%emt 0:00:00]} Be3 {[%emt 0:00:00]} 44. Ne2 {[%emt 0:00:00]} Bb6 {[%emt 0:00:00]} 45. Nc3 {[%emt 0:00:00]} Bd8 {[%emt 0:00:00]} 46. Kb3 {[%emt 0:00:00]} Bc7 {[%emt 0:00:00]} 47. Nd5 {[%emt 0:00:00]} Bd8 {[%emt 0:00:00]} 48. Kc3 {[%emt 0:00:00]} Kd6 {[%emt 0:00:00]} 49. Kd3 {[%emt 0:00:00]} Ke6 {[%emt 0:00:00]} 50. Nc3 {[%emt 0:00:00]} Be7 {[%emt 0:00:00]} 51. Nxb5 {[%emt 0:00:00]} Bxb4 {[%emt 0:00:00]} 52. Kc4 {[%emt 0:00:00]} Be7 {[%emt 0:00:00]} 53. Nc7+ {[%emt 0:00:00]} Kd6 {[%emt 0:00:00]} 54. Nd5 {[%emt 0:00:00]} Bd8 {[%emt 0:00:00]} 55. Kb5 {[%emt 0:00:00]} Kd7 {[%emt 0:00:00]} (55... Be7 $5) 56. Kc5 {[%emt 0:00:00]} Ke6 {[%emt 0:00:00]} 57. Kc6 {[%emt 0:00:00]} Ba5 $1 {[%emt 0:00:00]} 58. Ne3 {[%emt 0:00:00]} Bd2 {[%emt 0:00:00]} 59. Nc4 {[%emt 0:00:00]} Bb4 {[%emt 0:00:00]} 60. Kc7 {[%emt 0:00:00]} Ke7 {[%emt 0:00:00]} 61. Ne3 {[%emt 0:00:00] Threatens to win with Nd5+.} Ba5+ $1 {[%emt 0:00:00]} 62. Kc8 {[%emt 0:00:31]} Ke8 {[%emt 0:00:00]} 63. Kb7 $1 {[%emt 0:01:39]} Bd8 {[%emt 0:00:00]} 64. Kc6 {[%emt 0:00:23]} Ke7 {[%emt 0:00:00]} 65. Kd5 {[%emt 0:00:10]} Kd7 {[%emt 0:00:00]} 66. Nf5 {[%emt 0:00:32]} Be7 {[%emt 0:00:00]} 67. Ng3 {[%emt 0:01:47]} Bf8 {[%emt 0:00:00]} 68. Ne2 {[%emt 0:00:25]} Bb4 {[%emt 0:00:30]} 69. Nc1 {[%emt 0:00:28]} Be7 {[%emt 0:00:42]} 70. Na2 {[%emt 0:01:05]} Ba3 {[%emt 0:01:28]} 71. Nc3 {[%emt 0:00:17]} Bb4 {[%emt 0:00:33]} 72. Na4 $1 {[%emt 0:00:44]} Ba5 {[%emt 0:04:11]} 73. Nc5+ {[%emt 0:00:23]} Ke7 {[%emt 0:00:03]} 74. Kc6 {[%emt 0:00:27]} Bb4 {[%emt 0:00:26]} 75. Na6 {[%emt 0:01:29]} Bd6 $2 {[%emt 0:00:38][%mdl 8192]} (75... Bd2 $11) 76. Nc7 $1 $18 {[%emt 0:00:31]} Ba3 $2 {[%emt 0:02:44][%mdl 8192]} (76... Bxc7 $11 77. Kxc7 Kf8) 77. Nd5+ {[%emt 0:00:08]} Ke6 {[%emt 0:00:47]} 78. Kc7 $1 {[%emt 0:00:14] Hoping for Kd8.} Be7 $2 {[%emt 0:00:59][%mdl 8192]} (78... Bc1 $11) 79. Kc8 $1 {[%emt 0:00:11]} Bd6 $2 {[%emt 0:00:56][%mdl 8192]} (79... Ba3 $11) 80. Kd8 {[%emt 0:00:08]} Kf7 {[%emt 0:00:16]} 81. Kd7 {[%emt 0:00:21]} Bc5 $2 {[%emt 0:01:59][%mdl 8192] [#]} (81... Bf8 $11) 82. Nc7 $1 {[%emt 0:00:11] aiming for Ne6.} Bb6 $2 {[%emt 0:02:35][%mdl 8192] [#]} (82... Bf8 $11) 83. Nb5 $2 {[%emt 0:00:26]} (83. Ne6 $1 $18 {[%cal Re6d8] Black must now prevent Nd8+.} Ba5 84. Nd8+ Kg6 85. Nc6) 83... Ba5 $2 {[%emt 0:00:41][%mdl 8192]} (83... Bc5 $11) 84. Nd6+ {[%emt 0:00:10]} Kf8 {[%emt 0:00:11]} 85. Nb7 {[%emt 0:02:27] White is clearly winning.} Bb4 {[%emt 0:00:12]} 86. Ke6 {[%emt 0:00:16]} Be7 {[%emt 0:00:51]} 87. Na5 {[%emt 0:00:40] Weighted Error Value: White=0.05 (flawless) /Black=0.05 (flawless)} 1-0

[Event "FRA-ch Teams Top 16-A 2022"]
[Site "Chartres"]
[Date "2022.06.10"]
[Round "2.22"]
[White "Cantin, Loic"]
[Black "Iglesias, Yosha"]
[Result "1-0"]
[ECO "A13"]
[WhiteElo "2199"]
[BlackElo "2202"]
[Annotator "TA"]
[PlyCount "100"]
[EventDate "2022.06.09"]
[EventType "team-tourn"]
[EventCountry "FRA"]
[SourceTitle "playchess.com"]
[Source "ChessBase"]
[SourceQuality "1"]
[TimeControl "40/5400+30:1800+30"]

{[%evp 9,100,16,12,24,15,0,43,27,62,-6,0,-7,-29,-12,0,0,101,97,102,93,127,125,179,168,194,194,210,125,207,106,106,110,116,121,156,153,169,140,199,215,212,207,199,201,201,193,252,208,244,164,231,219,208,164,297,152,206,212,264,246,314,299,1024,982,1643,266,1446,1018,1349,1004,1222,1159,1156,1095,1014,886,12837,12837,12837,12838,12842,12843,12841,12842,12845,12845,12844,12844,12847,12845,12845,12846,12846]} 1. Nf3 {[%emt 0:00:05]} d5 {[%emt 0:00:40]} 2. c4 {[%emt 1:31:25]} e6 {[%emt 0:00:43]} 3. g3 {[%emt 0:00:00]} d4 {[%emt 0:02:38]} 4. Bg2 {[%emt 0:00:00]} Nc6 {[%emt 0:00:41]} 5. O-O {[%emt 0:00:00]} Bc5 {[%emt 0:01:19]} 6. d3 {[%emt 0:00:00] A13: English Opening: 1...e6.} Nge7 {[%emt 0:03:28] [#]} 7. b3 $146 {[%emt 0:00:00]} ({Predecessor:} 7. Nbd2 Nf5 8. Nb3 Be7 9. e4 dxe3 10. fxe3 a5 11. e4 Nfd4 12. Nfxd4 Nxd4 13. Be3 Nxb3 14. axb3 {1-0 (44) Bok,B (2624)-Hammer,J (2619) Chess.com INT 2022}) 7... Qd6 {[%emt 0:06:39]} 8. Bb2 {[%emt 0:00:00] White is slightly better.} O-O {[%emt 0:04:31]} 9. Qc1 {[%emt 0:00:00]} ({Better is} 9. Nfd2 $14) 9... a5 {[%emt 0:04:34]} 10. Na3 {[%emt 0:00:00]} e5 {[%emt 0:10:16]} 11. Ng5 {[%emt 0:00:00] Threatens to win with Ne4.} Bxa3 {[%emt 0:13:38]} (11... Bf5 {feels hotter.} 12. f4 f6 13. Ne4 Bxe4 14. Bxe4 a4) 12. Bxa3 {[%emt 0:00:00]} Qg6 {[%emt 0:00:24]} (12... Nb4 $11) 13. Bxc6 $16 {[%emt 0:00:00]} Nxc6 {[%emt 0:00:04]} 14. Bxf8 {[%emt 0:00:00] Strongly threatening Ba3.} Kxf8 {[%emt 0:00:15]} 15. f4 {[%emt 0:00:00]} h6 {[%emt 0:02:09]} (15... Bg4 $16 16. Nf3 (16. fxe5 Nxe5 17. Qd2 c5 $16) 16... e4) 16. Nf3 $18 {[%emt 0:00:00]} e4 {[%emt 0:02:32]} 17. Nh4 {[%emt 0:00:00]} Qh5 {[%emt 0:03:43] [#]} 18. dxe4 {[%emt 0:00:00]} (18. f5 $1 $18) 18... Qxe2 {[%emt 0:01:07]} (18... Bg4 $16 {is a better defense.}) 19. Qe1 {[%emt 0:00:00]} (19. f5 $18) 19... Bg4 $16 {[%emt 0:01:13]} 20. Rf2 {[%emt 0:00:00][%cal Bf1f2,Bf2d2,Bd2d3][%mdl 32]} Qxe1+ {[%emt 0:03:11]} 21. Rxe1 {[%emt 0:00:00]} a4 {[%emt 0:02:13]} 22. Kg2 {[%emt 0:00:00]} d3 {[%emt 0:06:30]} 23. Rd2 {[%emt 0:00:00]} Be2 {[%emt 0:01:15]} (23... axb3 $16 24. axb3 Nd4) 24. Nf3 $18 {[%emt 0:00:00]} axb3 {[%emt 0:09:06]} 25. axb3 {[%emt 0:00:00]} Bxf3+ {[%emt 0:04:12]} 26. Kxf3 {[%emt 0:00:00][%mdl 4096] Endgame KRR-KRN} Nd4+ {[%emt 0:00:06]} 27. Kg4 {[%emt 0:00:14]} Nxb3 {[%emt 0:00:04]} (27... Nc2 $142) 28. Rxd3 {[%emt 0:00:21]} Nc5 {[%emt 0:00:06]} 29. Rd2 {[%emt 0:02:07]} Ke7 {[%emt 0:01:49]} (29... g6 $142 30. f5 Ke7) 30. Rd5 {[%emt 0:02:13]} b6 {[%emt 0:00:32]} 31. Red1 {[%emt 0:00:40]} Ra4 {[%emt 0:02:11]} (31... g6 $142 32. Kh3 h5) 32. R5d4 {[%emt 0:00:51]} (32. Re5+ $18 Kf6 33. Re8 Rxc4 34. e5+ Kg6 35. Re7) 32... Ra2 {[%emt 0:10:36]} (32... g6 $16 {was necessary.} 33. R1d2 Kf8) 33. h4 {[%emt 0:00:43][%cal Bh2h4,Bh4h5][%mdl 32]} Ra3 {[%emt 0:00:07]} 34. h5 {[%emt 0:00:58]} Re3 {[%emt 0:00:36]} 35. e5 {[%emt 0:04:48]} Ne4 $2 {[%emt 0:00:49]} (35... Re2 36. Kf3 Rh2) 36. Rd7+ {[%emt 0:00:15]} Ke6 {[%emt 0:00:03]} 37. f5+ {[%emt 0:00:34]} ({Weaker is} 37. Kh4 Nxg3 38. Kg4 (38. Rxc7 $2 {gets mated.} Nf5+ 39. Kg4 Rg3#) 38... Nf5 $16) 37... Kxe5 {[%emt 0:00:02] ( -> ...Nf2+)} 38. R1d5+ {[%emt 0:00:14] White is clearly winning.} Kf6 {[%emt 0:00:12]} 39. Rxc7 {[%emt 0:01:37]} Ng5 {[%emt 0:01:07]} 40. Rd6+ {[%emt 0:01:32]} Ke5 {[%emt 0:00:03] [#]} 41. Re7+ $1 {[%emt 0:03:16]} Kxd6 {[%emt 0:00:25]} 42. Rxe3 {[%emt 0:00:06][%cal Of5f6] aiming for f6! KR-KN} Kc5 {[%emt 0:04:00]} 43. f6 {[%emt 0:01:46]} gxf6 {[%emt 0:00:15]} 44. Kf5 {[%emt 0:00:53]} Kxc4 {[%emt 0:03:31]} 45. Kxf6 {[%emt 0:00:30]} b5 {[%emt 0:00:10]} 46. Kg7 {[%emt 0:00:22]} b4 {[%emt 0:00:05]} 47. Kxh6 {[%emt 0:00:20]} Ne6 {[%emt 0:00:04]} 48. Kh7 {[%emt 0:01:10]} b3 {[%emt 0:04:56]} 49. Kg8 {[%emt 0:00:50]} b2 {[%emt 0:00:32]} 50. Re1 {[%emt 0:00:05]} Kd5 {[%emt 0:26:08] Weighted Error Value: White=0.22 (precise) /Black=0.35} 1-0

[Event "FRA-ch Teams Top 16-A 2022"]
[Site "Chartres"]
[Date "2022.06.10"]
[Round "2.23"]
[White "Baillon, Olivier"]
[Black "Da Silva, Quentin"]
[Result "1/2-1/2"]
[ECO "E60"]
[WhiteElo "2197"]
[BlackElo "2171"]
[Annotator "TA"]
[PlyCount "53"]
[EventDate "2022.06.09"]
[EventType "team-tourn"]
[EventCountry "FRA"]
[SourceTitle "playchess.com"]
[Source "ChessBase"]
[SourceQuality "1"]
[TimeControl "40/5400+30:1800+30"]

{[%evp 12,53,41,-21,0,-31,-30,-32,-29,-26,-21,-27,-28,-19,-33,-42,-36,-59,-48,-36,-22,-26,-17,-56,-63,-58,-55,-54,-60,-57,-44,-43,-46,-32,-47,-40,-14,-28,-33,-41,-33,-39,-6,0]} 1. Nf3 {[%emt 0:00:10]} Nf6 {[%emt 0:00:38]} 2. c4 {[%emt 0:00:21]} g6 {[%emt 0:00:56]} 3. b3 {[%emt 0:01:17]} Bg7 {[%emt 0:00:21]} 4. Bb2 {[%emt 0:00:20]} d6 {[%emt 0:01:48]} 5. d4 {[%emt 0:00:23]} O-O {[%emt 0:04:25]} 6. g3 {[%emt 0:01:32]} c5 {[%emt 0:05:57] 6...e5 is the modern continuation.} 7. Nc3 {[%emt 0:09:56]} (7. Bg2 $1 $14) 7... cxd4 $11 {[%emt 0:05:15] E60: King's Indian: Unusual lines and Fianchetto Variation without Nc3.} 8. Qxd4 {[%emt 0:13:54]} Qa5 {[%emt 0:09:50][%cal Of6e4] aiming for ...Ne4!} 9. Qd2 {[%emt 0:25:39] [#]} Ne4 $146 {[%emt 0:14:02] Black is slightly better.} ({Predecessor:} 9... Nc6 10. Bg2 Qh5 11. Nd5 Be6 12. Nxf6+ exf6 13. Qxd6 Rad8 14. Qa3 Rfe8 15. O-O Bd7 {0-1 (28) Sirpas,A (1825)-Raeva,E (2286) Sunny Beach 2010}) 10. Nxe4 {[%emt 0:00:08]} Qxd2+ {[%emt 0:00:06][%mdl 64] Remove Defender} 11. Nfxd2 {[%emt 0:00:24] Strongly threatening Bxg7.} Bxb2 {[%emt 0:00:08]} 12. Rb1 {[%emt 0:00:07]} Bg7 {[%emt 0:00:45]} 13. Bg2 {[%emt 0:00:53]} Nc6 {[%emt 0:07:47][%cal Bb8c6,Bc6b4,Bb4c2][%mdl 32]} 14. O-O {[%emt 0:07:12]} Nb4 {[%emt 0:09:35]} 15. a3 {[%emt 0:03:40]} Nc2 {[%emt 0:02:39]} 16. a4 $1 {[%emt 0:06:04]} Nb4 {[%emt 0:01:28]} 17. Rfc1 {[%emt 0:02:06]} Bf5 {[%emt 0:02:39]} 18. Bf3 {[%emt 0:05:36]} h5 {[%emt 0:01:36]} 19. Kg2 $1 {[%emt 0:00:12]} Rab8 {[%emt 0:09:47]} 20. h3 {[%emt 0:00:27]} b6 {[%emt 0:02:20]} 21. g4 {[%emt 0:00:26]} hxg4 {[%emt 0:00:14]} 22. hxg4 {[%emt 0:00:24]} Bd7 {[%emt 0:00:55]} 23. Nc3 {[%emt 0:01:08]} a6 {[%emt 0:01:16]} 24. g5 {[%emt 0:02:20]} Rfc8 {[%emt 0:01:45]} 25. Nd5 {[%emt 0:01:44]} Nxd5 {[%emt 0:00:08]} 26. Bxd5 {[%emt 0:00:12]} Bf5 {[%emt 0:03:22] This bishop pair is nice.} 27. Be4 {[%emt 0:00:33] Weighted Error Value: White=0.12 (very precise) /Black=0.06 (flawless)} 1/2-1/2